[Event "Late-Titled-Tuesday-Blitz-October-17-2023"]
[Site "Chess.com"]
[Date "2023.10.17"]
[Round "11"]
[White "tptagain"]
[Black "VincentKeymer"]
[Result "1-0"]
[WhiteElo "2934"]
[BlackElo "3075"]
[TimeControl "180+1"]
[EndTime "16:00:49 PDT"]
[Termination "tptagain won by resignation"]

1. d4 {[%clk 0:03:00.9]} 1... Nf6 {[%clk 0:02:59.8]} 2. Nf3 {[%clk 0:03:01.5]}
2... e6 {[%clk 0:03:00.3]} 3. Bg5 {[%clk 0:03:01.6]} 3... h6 {[%clk 0:03:00.4]}
4. Bxf6 {[%clk 0:03:01.9]} 4... Qxf6 {[%clk 0:03:01.3]} 5. e4 {[%clk 0:03:02.8]}
5... d6 {[%clk 0:03:01.7]} 6. Nc3 {[%clk 0:03:02.8]} 6... a6 {[%clk 0:03:01.4]}
7. a4 {[%clk 0:03:02]} 7... Nd7 {[%clk 0:02:58.2]} 8. Qd2 {[%clk 0:02:55.5]}
8... g6 {[%clk 0:02:57.9]} 9. a5 {[%clk 0:02:53.8]} 9... Bg7 {[%clk 0:02:57.9]}
10. Bc4 {[%clk 0:02:50.8]} 10... O-O {[%clk 0:02:57.5]} 11. O-O {[%clk
0:02:50.4]} 11... g5 {[%clk 0:02:37.5]} 12. h3 {[%clk 0:02:46.6]} 12... c6
{[%clk 0:02:32.4]} 13. Rad1 {[%clk 0:02:35.7]} 13... Qd8 {[%clk 0:02:27]} 14.
Ne2 {[%clk 0:02:25.9]} 14... b5 {[%clk 0:02:01]} 15. axb6 {[%clk 0:02:23.5]}
15... Qxb6 {[%clk 0:02:01.4]} 16. Ng3 {[%clk 0:02:13.5]} 16... a5 {[%clk
0:01:49.3]} 17. Nh5 {[%clk 0:01:55.9]} 17... Qb4 {[%clk 0:01:49]} 18. Qe2 {[%clk
0:01:45.4]} 18... c5 {[%clk 0:01:25.8]} 19. c3 {[%clk 0:01:36.9]} 19... Qb6
{[%clk 0:01:24.3]} 20. d5 {[%clk 0:01:26.4]} 20... e5 {[%clk 0:01:24.5]} 21. h4
{[%clk 0:01:21]} 21... Nf6 {[%clk 0:01:21.6]} 22. Nxg7 {[%clk 0:01:18.4]} 22...
Kxg7 {[%clk 0:01:21.5]} 23. hxg5 {[%clk 0:01:18.2]} 23... hxg5 {[%clk
0:01:19.5]} 24. Nxg5 {[%clk 0:01:17.9]} 24... Rh8 {[%clk 0:01:16.4]} 25. Rd3
{[%clk 0:00:39.9]} 25... Qd8 {[%clk 0:01:01.2]} 26. f4 {[%clk 0:00:36.8]} 26...
Nh5 {[%clk 0:00:47]} 27. Nxf7 {[%clk 0:00:35.2]} 27... Kxf7 {[%clk 0:00:43.1]}
28. fxe5+ {[%clk 0:00:34.9]} 28... Ke8 {[%clk 0:00:37.5]} 29. Bb5+ {[%clk
0:00:26]} 29... Bd7 {[%clk 0:00:36.6]} 30. Rh3 {[%clk 0:00:22.7]} 30... Bxb5
{[%clk 0:00:23.6]} 31. Qxb5+ {[%clk 0:00:23.6]} 31... Qd7 {[%clk 0:00:24.5]} 32.
Qe2 {[%clk 0:00:23.1]} 32... Qxh3 {[%clk 0:00:15.4]} 33. gxh3 {[%clk 0:00:21.6]}
33... Ng3 {[%clk 0:00:14.1]} 34. Qb5+ {[%clk 0:00:21.7]} 34... Kd8 {[%clk
0:00:14.1]} 35. Qb6+ {[%clk 0:00:21.6]} 1-0

[Event "Late-Titled-Tuesday-Blitz-October-17-2023"]
[Site "Chess.com"]
[Date "2023.10.17"]
[Round "11"]
[White "nitpicker"]
[Black "protectiago"]
[Result "1-0"]
[WhiteElo "2241"]
[BlackElo "2086"]
[TimeControl "180+1"]
[EndTime "16:00:59 PDT"]
[Termination "nitpicker won on time"]

1. d4 {[%clk 0:03:00.9]} 1... Nf6 {[%clk 0:02:58.9]} 2. c4 {[%clk 0:02:58.3]}
2... g6 {[%clk 0:02:58.8]} 3. Nc3 {[%clk 0:02:56.5]} 3... d5 {[%clk 0:02:59.1]}
4. Qb3 {[%clk 0:02:56.6]} 4... dxc4 {[%clk 0:02:57.8]} 5. Qxc4 {[%clk
0:02:57.5]} 5... Bg7 {[%clk 0:02:58]} 6. e4 {[%clk 0:02:56.7]} 6... O-O {[%clk
0:02:52.8]} 7. Nf3 {[%clk 0:02:55.4]} 7... Na6 {[%clk 0:02:43.1]} 8. Qa4 {[%clk
0:02:55.4]} 8... Bd7 {[%clk 0:02:34]} 9. Qb3 {[%clk 0:02:47.8]} 9... c5 {[%clk
0:01:09.6]} 10. d5 {[%clk 0:02:38.2]} 10... c4 {[%clk 0:00:55]} 11. Bxc4 {[%clk
0:02:08.6]} 11... Nc5 {[%clk 0:00:53.9]} 12. Qc2 {[%clk 0:02:06.7]} 12... Rc8
{[%clk 0:00:48.5]} 13. e5 {[%clk 0:01:49.4]} 13... Ng4 {[%clk 0:00:32.9]} 14.
Bf4 {[%clk 0:01:44.3]} 14... b5 {[%clk 0:00:32.2]} 15. b4 {[%clk 0:00:57.1]}
15... Bf5 {[%clk 0:00:28.4]} 16. Qe2 {[%clk 0:00:56.9]} 16... Nd7 {[%clk
0:00:20.4]} 17. Nxb5 {[%clk 0:00:53.1]} 17... Ngxe5 {[%clk 0:00:18.6]} 18. Nxe5
{[%clk 0:00:45.6]} 18... Nxe5 {[%clk 0:00:18]} 19. Bxe5 {[%clk 0:00:42]} 19...
Bxe5 {[%clk 0:00:17.8]} 20. Rc1 {[%clk 0:00:39.2]} 20... Bf4 {[%clk 0:00:14.3]}
21. Rc3 {[%clk 0:00:37.3]} 21... a6 {[%clk 0:00:12.9]} 22. Na3 {[%clk
0:00:36.3]} 22... Qd6 {[%clk 0:00:10.5]} 23. Rb3 {[%clk 0:00:32.5]} 23... Rc7
{[%clk 0:00:04.7]} 24. g3 {[%clk 0:00:32.9]} 24... Be5 {[%clk 0:00:04.3]} 25.
O-O {[%clk 0:00:32.3]} 25... Rfc8 {[%clk 0:00:04.7]} 26. Re1 {[%clk 0:00:31.7]}
26... Bf6 {[%clk 0:00:04.5]} 27. Bxa6 {[%clk 0:00:30.9]} 27... Ra8 {[%clk
0:00:04.2]} 28. Nb5 {[%clk 0:00:29.3]} 28... Qxa6 {[%clk 0:00:03.1]} 29. Nxc7
{[%clk 0:00:29.5]} 29... Qxe2 {[%clk 0:00:03.5]} 30. Rxe2 {[%clk 0:00:29.9]}
30... Rc8 {[%clk 0:00:03.4]} 31. Na6 {[%clk 0:00:25.3]} 31... Bd7 {[%clk
0:00:02.2]} 32. Nc5 {[%clk 0:00:24.9]} 32... Bb5 {[%clk 0:00:02.5]} 33. Rd2
{[%clk 0:00:24.3]} 33... Ra8 {[%clk 0:00:02.4]} 34. h4 {[%clk 0:00:23.1]} 34...
h5 {[%clk 0:00:02.1]} 35. a4 {[%clk 0:00:23]} 1-0

[Event "Late-Titled-Tuesday-Blitz-October-17-2023"]
[Site "Chess.com"]
[Date "2023.10.17"]
[Round "11"]
[White "dadice10"]
[Black "C_K_G"]
[Result "1-0"]
[WhiteElo "2196"]
[BlackElo "1888"]
[TimeControl "180+1"]
[EndTime "16:01:00 PDT"]
[Termination "dadice10 won on time"]

1. e4 {[%clk 0:02:57.9]} 1... c5 {[%clk 0:03:00.2]} 2. Nc3 {[%clk 0:02:56.1]}
2... d6 {[%clk 0:03:01.1]} 3. f4 {[%clk 0:02:54.9]} 3... e6 {[%clk 0:03:01.7]}
4. Nf3 {[%clk 0:02:54.5]} 4... Nc6 {[%clk 0:03:01.9]} 5. Bb5 {[%clk 0:02:53.5]}
5... Qc7 {[%clk 0:03:01.1]} 6. O-O {[%clk 0:02:52.3]} 6... Bd7 {[%clk
0:03:00.5]} 7. d3 {[%clk 0:02:52.2]} 7... Nf6 {[%clk 0:02:59]} 8. Qe1 {[%clk
0:02:37.2]} 8... a6 {[%clk 0:02:58.3]} 9. Bxc6 {[%clk 0:02:35.8]} 9... Bxc6
{[%clk 0:02:56.8]} 10. e5 {[%clk 0:02:35.5]} 10... Ng4 {[%clk 0:02:50.4]} 11.
Qg3 {[%clk 0:02:31.6]} 11... h5 {[%clk 0:02:48.6]} 12. h3 {[%clk 0:02:30.4]}
12... Nh6 {[%clk 0:02:48.3]} 13. exd6 {[%clk 0:02:25.7]} 13... Qxd6 {[%clk
0:02:44.2]} 14. Ne4 {[%clk 0:02:25.1]} 14... Qc7 {[%clk 0:02:38.9]} 15. Ne5
{[%clk 0:02:24.5]} 15... Nf5 {[%clk 0:02:36.5]} 16. Qf2 {[%clk 0:02:19.9]} 16...
c4 {[%clk 0:02:29.2]} 17. Ng5 {[%clk 0:02:05.1]} 17... cxd3 {[%clk 0:02:14.5]}
18. Ngxf7 {[%clk 0:01:59.9]} 18... Rg8 {[%clk 0:01:48]} 19. c3 {[%clk 0:01:56]}
19... Bb5 {[%clk 0:01:42.4]} 20. Qf3 {[%clk 0:01:43.2]} 20... g6 {[%clk
0:01:21.8]} 21. Bd2 {[%clk 0:01:41.1]} 21... Bg7 {[%clk 0:01:09.5]} 22. Rae1
{[%clk 0:01:36.7]} 22... Bxe5 {[%clk 0:01:03.9]} 23. Nxe5 {[%clk 0:01:37.6]}
23... O-O-O {[%clk 0:01:01.1]} 24. c4 {[%clk 0:01:30.2]} 24... Bc6 {[%clk
0:00:57.8]} 25. Nxc6 {[%clk 0:01:27.9]} 25... Qxc6 {[%clk 0:00:48.7]} 26. Qxc6+
{[%clk 0:01:26.3]} 26... bxc6 {[%clk 0:00:48.8]} 27. Rxe6 {[%clk 0:01:20.2]}
27... Rd6 {[%clk 0:00:48.8]} 28. Rxd6 {[%clk 0:01:18.7]} 28... Nxd6 {[%clk
0:00:49.7]} 29. b3 {[%clk 0:01:17.5]} 29... Ne4 {[%clk 0:00:49.7]} 30. Ba5
{[%clk 0:01:13.1]} 30... Rf8 {[%clk 0:00:25.8]} 31. Rd1 {[%clk 0:01:11.8]} 31...
Rxf4 {[%clk 0:00:19.9]} 32. Rxd3 {[%clk 0:01:11.4]} 32... h4 {[%clk 0:00:18.8]}
33. Rf3 {[%clk 0:01:01.7]} 33... Rxf3 {[%clk 0:00:13.7]} 34. gxf3 {[%clk
0:01:02.6]} 34... Ng5 {[%clk 0:00:11.9]} 35. Kg2 {[%clk 0:01:01]} 35... Kd7
{[%clk 0:00:12.5]} 36. Bd2 {[%clk 0:00:59.5]} 36... Ne6 {[%clk 0:00:12.4]} 37.
f4 {[%clk 0:00:59.2]} 37... Kd6 {[%clk 0:00:12.1]} 38. Kf3 {[%clk 0:00:58.8]}
38... Kc5 {[%clk 0:00:11.4]} 39. Ke4 {[%clk 0:00:57.4]} 39... Ng7 {[%clk
0:00:11.1]} 40. Ke5 {[%clk 0:00:54.2]} 40... Nf5 {[%clk 0:00:06.7]} 41. Kf6
{[%clk 0:00:53.6]} 41... Kd4 {[%clk 0:00:04.1]} 42. Kxg6 {[%clk 0:00:53.2]}
42... Ng3 {[%clk 0:00:04.5]} 43. f5 {[%clk 0:00:52.1]} 43... Kd3 {[%clk
0:00:03.7]} 44. f6 {[%clk 0:00:49.6]} 44... Ne4 {[%clk 0:00:01.7]} 45. Bg5
{[%clk 0:00:46]} 1-0

[Event "Late-Titled-Tuesday-Blitz-October-17-2023"]
[Site "Chess.com"]
[Date "2023.10.17"]
[Round "11"]
[White "Vigg-Sama"]
[Black "tylityli"]
[Result "0-1"]
[WhiteElo "2187"]
[BlackElo "2333"]
[TimeControl "180+1"]
[EndTime "16:01:03 PDT"]
[Termination "tylityli won by resignation"]

1. e4 {[%clk 0:03:00.9]} 1... e5 {[%clk 0:02:26.7]} 2. Nf3 {[%clk 0:03:00.2]}
2... Nc6 {[%clk 0:02:26]} 3. Bb5 {[%clk 0:03:00.7]} 3... a6 {[%clk 0:02:25.6]}
4. Ba4 {[%clk 0:03:00.7]} 4... Nf6 {[%clk 0:02:23.9]} 5. O-O {[%clk 0:03:00.2]}
5... Be7 {[%clk 0:02:23.7]} 6. Re1 {[%clk 0:03:00.2]} 6... b5 {[%clk 0:02:23.5]}
7. Bb3 {[%clk 0:03:00.4]} 7... d6 {[%clk 0:02:24.1]} 8. c3 {[%clk 0:02:59.1]}
8... O-O {[%clk 0:02:24]} 9. h3 {[%clk 0:02:58]} 9... Nd7 {[%clk 0:02:23.5]} 10.
a4 {[%clk 0:02:56.3]} 10... Rb8 {[%clk 0:02:22.9]} 11. axb5 {[%clk 0:02:55.2]}
11... axb5 {[%clk 0:02:23.8]} 12. d4 {[%clk 0:02:55.5]} 12... Bf6 {[%clk
0:02:23.7]} 13. Be3 {[%clk 0:02:47]} 13... Re8 {[%clk 0:02:19.4]} 14. Nbd2
{[%clk 0:02:41.3]} 14... Bb7 {[%clk 0:02:17.4]} 15. d5 {[%clk 0:02:41.2]} 15...
Ne7 {[%clk 0:02:17]} 16. Qe2 {[%clk 0:02:40.8]} 16... Ng6 {[%clk 0:02:14.9]} 17.
Qxb5 {[%clk 0:02:27.5]} 17... Nf4 {[%clk 0:02:12.5]} 18. Bxf4 {[%clk 0:02:19.4]}
18... exf4 {[%clk 0:02:12]} 19. Qe2 {[%clk 0:02:17.6]} 19... Be5 {[%clk
0:02:07.3]} 20. Ba4 {[%clk 0:02:12]} 20... Rf8 {[%clk 0:02:01.4]} 21. Bxd7
{[%clk 0:02:10.6]} 21... Qxd7 {[%clk 0:02:01.6]} 22. Nxe5 {[%clk 0:02:11.1]}
22... dxe5 {[%clk 0:02:01.9]} 23. Nf3 {[%clk 0:02:09.3]} 23... Qe7 {[%clk
0:01:57.7]} 24. b4 {[%clk 0:02:03.9]} 24... g5 {[%clk 0:01:54.4]} 25. Nh2 {[%clk
0:01:59.5]} 25... Bc8 {[%clk 0:01:52.1]} 26. Qh5 {[%clk 0:01:49.8]} 26... Qf6
{[%clk 0:01:36.4]} 27. Ng4 {[%clk 0:01:46.1]} 27... Bxg4 {[%clk 0:01:35.8]} 28.
Qxg4 {[%clk 0:01:43]} 28... Qg6 {[%clk 0:01:34.5]} 29. Rab1 {[%clk 0:01:38.4]}
29... f5 {[%clk 0:01:22.4]} 30. exf5 {[%clk 0:01:36.3]} 30... Rxf5 {[%clk
0:01:22.6]} 31. b5 {[%clk 0:01:25.3]} 31... h5 {[%clk 0:01:21.9]} 32. Qe2 {[%clk
0:01:25.3]} 32... g4 {[%clk 0:01:20.9]} 33. hxg4 {[%clk 0:01:25.5]} 33... hxg4
{[%clk 0:01:21.8]} 34. Qe4 {[%clk 0:01:23.4]} 34... f3 {[%clk 0:01:05.4]} 35. c4
{[%clk 0:01:11]} 35... g3 {[%clk 0:00:52.9]} 36. gxf3 {[%clk 0:00:58.4]} 36...
Rbf8 {[%clk 0:00:44.4]} 37. Qg4 {[%clk 0:00:53.4]} 37... Qxg4 {[%clk 0:00:39.6]}
38. fxg4 {[%clk 0:00:53]} 38... gxf2+ {[%clk 0:00:39.8]} 39. Kg2 {[%clk
0:00:53.3]} 39... fxe1=Q {[%clk 0:00:39.6]} 40. Rxe1 {[%clk 0:00:54.2]} 40...
Rf2+ {[%clk 0:00:37.8]} 41. Kg3 {[%clk 0:00:53.4]} 41... Rc2 {[%clk 0:00:26.7]}
42. Re4 {[%clk 0:00:50]} 42... Rf4 {[%clk 0:00:21]} 43. Rxe5 {[%clk 0:00:46]}
43... Rfxc4 {[%clk 0:00:19.9]} 44. g5 {[%clk 0:00:42.8]} 44... Kf7 {[%clk
0:00:19.7]} 45. Re6 {[%clk 0:00:41.3]} 45... R2c3+ {[%clk 0:00:18.4]} 46. Kf2
{[%clk 0:00:40.7]} 46... Rb4 {[%clk 0:00:18.5]} 47. g6+ {[%clk 0:00:38.9]} 47...
Kg7 {[%clk 0:00:18]} 0-1

[Event "Late-Titled-Tuesday-Blitz-October-17-2023"]
[Site "Chess.com"]
[Date "2023.10.17"]
[Round "11"]
[White "Hrant_ChessMood"]
[Black "Dhaydon19"]
[Result "0-1"]
[WhiteElo "2915"]
[BlackElo "2602"]
[TimeControl "180+1"]
[EndTime "16:01:06 PDT"]
[Termination "Dhaydon19 won by resignation"]

1. e4 {[%clk 0:03:00.9]} 1... d5 {[%clk 0:02:59.8]} 2. exd5 {[%clk 0:03:00.1]}
2... Qxd5 {[%clk 0:03:00.3]} 3. d4 {[%clk 0:02:59.9]} 3... Qd8 {[%clk
0:03:00.7]} 4. c4 {[%clk 0:02:58.4]} 4... Nf6 {[%clk 0:03:01.2]} 5. Nc3 {[%clk
0:02:58.4]} 5... g6 {[%clk 0:02:58.3]} 6. Be2 {[%clk 0:02:58.2]} 6... Bg7 {[%clk
0:02:58.9]} 7. Nf3 {[%clk 0:02:58.8]} 7... O-O {[%clk 0:02:58.7]} 8. O-O {[%clk
0:02:59.4]} 8... c6 {[%clk 0:02:58.3]} 9. Re1 {[%clk 0:02:59.1]} 9... Bf5 {[%clk
0:02:55.1]} 10. Bg5 {[%clk 0:02:58.4]} 10... Nbd7 {[%clk 0:02:52.9]} 11. Bf1
{[%clk 0:02:52.9]} 11... Re8 {[%clk 0:02:51.5]} 12. h3 {[%clk 0:02:50.1]} 12...
Nf8 {[%clk 0:02:49.5]} 13. Qd2 {[%clk 0:02:48.1]} 13... Qc7 {[%clk 0:02:36.7]}
14. Rad1 {[%clk 0:02:46.8]} 14... Rad8 {[%clk 0:02:35.9]} 15. Bh6 {[%clk
0:02:42.8]} 15... Ne6 {[%clk 0:02:32.5]} 16. g4 {[%clk 0:02:30.3]} 16... Bxg4
{[%clk 0:02:30]} 17. hxg4 {[%clk 0:02:30]} 17... Nxg4 {[%clk 0:02:15.1]} 18.
Bxg7 {[%clk 0:02:30.2]} 18... Kxg7 {[%clk 0:02:15.4]} 19. Bh3 {[%clk 0:02:30.5]}
19... Nxd4 {[%clk 0:02:05.1]} 20. Qxd4+ {[%clk 0:01:56.8]} 20... Rxd4 {[%clk
0:02:03]} 21. Rxd4 {[%clk 0:01:57.7]} 21... Nf6 {[%clk 0:02:00.7]} 22. Ne4
{[%clk 0:01:43.3]} 22... Rd8 {[%clk 0:01:52.9]} 23. Nxf6 {[%clk 0:01:43.1]}
23... exf6 {[%clk 0:01:51.4]} 24. Rde4 {[%clk 0:01:43.2]} 24... Rd3 {[%clk
0:01:45.2]} 25. Bg2 {[%clk 0:01:38.3]} 25... Qd7 {[%clk 0:01:39.4]} 26. Re7
{[%clk 0:01:31.9]} 26... Qg4 {[%clk 0:01:38.7]} 27. Nh2 {[%clk 0:01:30.1]} 27...
Qd4 {[%clk 0:01:34.5]} 28. Rxb7 {[%clk 0:01:19.5]} 28... Rd2 {[%clk 0:01:31.2]}
29. Rf1 {[%clk 0:01:16.5]} 29... Qxc4 {[%clk 0:01:30.9]} 30. Nf3 {[%clk
0:01:10.6]} 30... Rd5 {[%clk 0:01:22.1]} 31. Rxa7 {[%clk 0:01:06.2]} 31... h5
{[%clk 0:01:18.3]} 32. b3 {[%clk 0:00:59.9]} 32... Qf4 {[%clk 0:01:16.6]} 33.
Ra4 {[%clk 0:01:00]} 33... Qd6 {[%clk 0:01:12.3]} 34. Re4 {[%clk 0:00:56.5]}
34... g5 {[%clk 0:01:06.4]} 35. a4 {[%clk 0:00:50.6]} 35... Qa3 {[%clk
0:01:02.6]} 36. Re3 {[%clk 0:00:47.1]} 36... Rd6 {[%clk 0:00:49.6]} 37. Ne1
{[%clk 0:00:43.1]} 37... c5 {[%clk 0:00:47.6]} 38. Bf3 {[%clk 0:00:39.1]} 38...
g4 {[%clk 0:00:47.5]} 39. Bd1 {[%clk 0:00:39.7]} 39... Rxd1 {[%clk 0:00:45.2]}
40. f3 {[%clk 0:00:30.1]} 40... Qc1 {[%clk 0:00:42.7]} 41. Re2 {[%clk
0:00:27.5]} 41... Qf4 {[%clk 0:00:35.7]} 42. fxg4 {[%clk 0:00:25.3]} 42... Qg3+
{[%clk 0:00:35.6]} 43. Rg2 {[%clk 0:00:25.4]} 43... Qe3+ {[%clk 0:00:35.5]} 44.
Kh2 {[%clk 0:00:25.1]} 44... Rxe1 {[%clk 0:00:35.5]} 45. gxh5+ {[%clk
0:00:25.6]} 45... Kf8 {[%clk 0:00:32.3]} 46. Rf5 {[%clk 0:00:17.8]} 46... Qc1
{[%clk 0:00:28.8]} 47. Rxf6 {[%clk 0:00:13]} 47... Rh1+ {[%clk 0:00:27.9]} 48.
Kg3 {[%clk 0:00:13.7]} 48... Qg5+ {[%clk 0:00:27.7]} 0-1

[Event "Late-Titled-Tuesday-Blitz-October-17-2023"]
[Site "Chess.com"]
[Date "2023.10.17"]
[Round "11"]
[White "Goryachkina"]
[Black "scandalgod"]
[Result "0-1"]
[WhiteElo "2626"]
[BlackElo "2509"]
[TimeControl "180+1"]
[EndTime "16:01:09 PDT"]
[Termination "scandalgod won on time"]

1. e4 {[%clk 0:02:59.7]} 1... e5 {[%clk 0:02:58.1]} 2. Nf3 {[%clk 0:02:59]} 2...
Nc6 {[%clk 0:02:57.7]} 3. Nc3 {[%clk 0:02:58.8]} 3... Nf6 {[%clk 0:02:57.1]} 4.
d4 {[%clk 0:02:57.9]} 4... exd4 {[%clk 0:02:56.8]} 5. Nxd4 {[%clk 0:02:58.5]}
5... Bb4 {[%clk 0:02:55.5]} 6. Nxc6 {[%clk 0:02:58.6]} 6... bxc6 {[%clk
0:02:54.7]} 7. Bd3 {[%clk 0:02:58.3]} 7... O-O {[%clk 0:02:53.1]} 8. O-O {[%clk
0:02:57.2]} 8... d5 {[%clk 0:02:52.5]} 9. exd5 {[%clk 0:02:55.8]} 9... Bg4
{[%clk 0:02:51.2]} 10. Be2 {[%clk 0:02:54.5]} 10... Bxe2 {[%clk 0:02:34.6]} 11.
Nxe2 {[%clk 0:02:55.4]} 11... cxd5 {[%clk 0:02:26.8]} 12. Bg5 {[%clk 0:02:55]}
12... c6 {[%clk 0:02:26.6]} 13. Nd4 {[%clk 0:02:54.8]} 13... Qd6 {[%clk
0:02:23.9]} 14. Qf3 {[%clk 0:02:34.5]} 14... Ne4 {[%clk 0:02:13.9]} 15. Be3
{[%clk 0:02:31.4]} 15... Rae8 {[%clk 0:02:07.7]} 16. c3 {[%clk 0:02:26.5]} 16...
Bc5 {[%clk 0:02:02.1]} 17. Nf5 {[%clk 0:02:26.5]} 17... Qe5 {[%clk 0:01:53.1]}
18. Rae1 {[%clk 0:01:58.3]} 18... Bb6 {[%clk 0:01:41.9]} 19. Qg4 {[%clk
0:01:50.7]} 19... g6 {[%clk 0:01:29.6]} 20. Nd4 {[%clk 0:01:46.1]} 20... f5
{[%clk 0:01:15]} 21. Qd1 {[%clk 0:01:38.7]} 21... f4 {[%clk 0:01:03]} 22. Nxc6
{[%clk 0:01:36.2]} 22... fxe3 {[%clk 0:00:41.8]} 23. Nxe5 {[%clk 0:01:31.1]}
23... exf2+ {[%clk 0:00:38.6]} 24. Kh1 {[%clk 0:01:31.1]} 24... fxe1=Q {[%clk
0:00:36.7]} 25. Qxd5+ {[%clk 0:00:55.1]} 25... Kg7 {[%clk 0:00:35.9]} 26. Qd7+
{[%clk 0:00:36.1]} 26... Kh6 {[%clk 0:00:19.7]} 27. Qh3+ {[%clk 0:00:33.1]}
27... Kg7 {[%clk 0:00:19.6]} 28. Qd7+ {[%clk 0:00:32]} 28... Kg8 {[%clk
0:00:17]} 29. Rxe1 {[%clk 0:00:08.7]} 29... Nf2+ {[%clk 0:00:15.6]} 30. Kg1
{[%clk 0:00:08.4]} 30... Rxe5 {[%clk 0:00:11.8]} 0-1

[Event "Late-Titled-Tuesday-Blitz-October-17-2023"]
[Site "Chess.com"]
[Date "2023.10.17"]
[Round "11"]
[White "Necromon"]
[Black "AsaHoffmann"]
[Result "0-1"]
[WhiteElo "2495"]
[BlackElo "2370"]
[TimeControl "180+1"]
[EndTime "16:01:11 PDT"]
[Termination "AsaHoffmann won by resignation"]

1. Nf3 {[%clk 0:03:00.9]} 1... d6 {[%clk 0:02:29.4]} 2. d4 {[%clk 0:02:55]} 2...
Bg4 {[%clk 0:02:27.8]} 3. g3 {[%clk 0:02:53.4]} 3... Bxf3 {[%clk 0:02:26.4]} 4.
exf3 {[%clk 0:02:53.6]} 4... c6 {[%clk 0:02:26.5]} 5. Bg2 {[%clk 0:02:53.6]}
5... e6 {[%clk 0:02:26.5]} 6. O-O {[%clk 0:02:52.7]} 6... g6 {[%clk 0:02:26.6]}
7. c3 {[%clk 0:02:51.9]} 7... Bg7 {[%clk 0:02:26.2]} 8. Be3 {[%clk 0:02:51.3]}
8... Ne7 {[%clk 0:02:24]} 9. Qc1 {[%clk 0:02:49.1]} 9... Qb6 {[%clk 0:02:16.9]}
10. Na3 {[%clk 0:02:46.3]} 10... d5 {[%clk 0:02:15.7]} 11. Rb1 {[%clk
0:02:41.4]} 11... Nd7 {[%clk 0:02:13.4]} 12. Bh6 {[%clk 0:02:39.8]} 12... O-O
{[%clk 0:02:12.3]} 13. Bxg7 {[%clk 0:02:37.8]} 13... Kxg7 {[%clk 0:02:12]} 14.
f4 {[%clk 0:02:37.6]} 14... Nf5 {[%clk 0:02:08.9]} 15. Nc2 {[%clk 0:02:36.3]}
15... c5 {[%clk 0:02:06.9]} 16. dxc5 {[%clk 0:02:31.7]} 16... Nxc5 {[%clk
0:02:06.3]} 17. Ne3 {[%clk 0:02:26.1]} 17... Nd6 {[%clk 0:02:01.3]} 18. Qd2
{[%clk 0:02:16.5]} 18... Rac8 {[%clk 0:01:52.7]} 19. Qd4+ {[%clk 0:02:09.5]}
19... f6 {[%clk 0:01:52.6]} 20. Rfe1 {[%clk 0:02:07.7]} 20... Nce4 {[%clk
0:01:49.8]} 21. Qa4 {[%clk 0:02:00.6]} 21... a6 {[%clk 0:01:46.8]} 22. h4 {[%clk
0:01:35.8]} 22... Qb5 {[%clk 0:01:46.1]} 23. Qd1 {[%clk 0:01:31]} 23... f5
{[%clk 0:01:41.8]} 24. Qd4+ {[%clk 0:01:25.2]} 24... Kf7 {[%clk 0:01:39.4]} 25.
h5 {[%clk 0:01:24.4]} 25... Qc5 {[%clk 0:01:36.8]} 26. hxg6+ {[%clk 0:01:23.5]}
26... hxg6 {[%clk 0:01:36.4]} 27. Qe5 {[%clk 0:01:20.3]} 27... Rfe8 {[%clk
0:01:09.7]} 28. Rbd1 {[%clk 0:01:09]} 28... b5 {[%clk 0:01:08.3]} 29. Kf1 {[%clk
0:00:46.1]} 29... a5 {[%clk 0:01:07.7]} 30. g4 {[%clk 0:00:30.6]} 30... Nc4
{[%clk 0:01:00.5]} 31. Nxc4 {[%clk 0:00:28.1]} 31... Qxc4+ {[%clk 0:00:59.9]}
32. Kg1 {[%clk 0:00:28.8]} 32... b4 {[%clk 0:00:52.8]} 33. Bxe4 {[%clk
0:00:28.5]} 33... fxe4 {[%clk 0:00:51.3]} 34. Re3 {[%clk 0:00:23.7]} 34... Qc7
{[%clk 0:00:46.4]} 35. Qxc7+ {[%clk 0:00:20.5]} 35... Rxc7 {[%clk 0:00:46.3]}
36. cxb4 {[%clk 0:00:21.4]} 36... axb4 {[%clk 0:00:46.2]} 37. f5 {[%clk
0:00:22.1]} 37... gxf5 {[%clk 0:00:44.9]} 38. gxf5 {[%clk 0:00:22.5]} 38... Rc2
{[%clk 0:00:44.6]} 39. fxe6+ {[%clk 0:00:22.1]} 39... Kxe6 {[%clk 0:00:44.7]}
40. Rb3 {[%clk 0:00:22.5]} 40... Rg8+ {[%clk 0:00:41.9]} 41. Kf1 {[%clk
0:00:18.2]} 41... Rf8 {[%clk 0:00:41.9]} 42. Rxb4 {[%clk 0:00:13.4]} 42...
Rfxf2+ {[%clk 0:00:40.9]} 43. Kg1 {[%clk 0:00:13.9]} 43... Rg2+ {[%clk
0:00:40.9]} 44. Kh1 {[%clk 0:00:14.3]} 44... e3 {[%clk 0:00:39.5]} 45. Re1
{[%clk 0:00:14.7]} 45... Rh2+ {[%clk 0:00:31.8]} 46. Kg1 {[%clk 0:00:14.1]}
46... Rcg2+ {[%clk 0:00:31.5]} 47. Kf1 {[%clk 0:00:14.3]} 47... e2+ {[%clk
0:00:31.7]} 48. Rxe2+ {[%clk 0:00:14.7]} 48... Rxe2 {[%clk 0:00:31.4]} 49. a4
{[%clk 0:00:14.9]} 49... Rxb2 {[%clk 0:00:30.5]} 0-1